fUSD/lending_fUSD_20250716
["ID","MTS","AMOUNT","RATE_DAILY","PERIOD"]
[372450163,1752647485671,-155.332541,0.00022191,7]
[372450164,1752647485681,-464.80158628,0.00022191,2]
[372450165,1752647485697,-241.396834,0.00022191,7]
[372450166,1752647485707,-155.332541,0.00022191,7]
[372450167,1752647485717,-155.332541,0.00022191,7]
[372450168,1752647485726,-460.0,0.00022191,2]
[372450169,1752647485737,-460.0,0.00022191,2]
[372450170,1752647485747,-460.0,0.00022191,2]
[372450171,1752647485757,-1113.01,0.00022191,2]
[372450172,1752647485768,-460.0,0.00022191,2]
[372450173,1752647485780,-1023.27,0.00022191,2]
[372450174,1752647485791,-669.14,0.00022191,2]
[372450175,1752647485802,-536.55228092,0.00022191,2]
[372450176,1752647485811,-470.99771984,0.00022191,2]
[372450177,1752647485821,-558.14,0.00022191,2]
[372450178,1752647485831,-460.0,0.00022191,2]
[372450179,1752647485840,-460.0,0.00022191,2]
[372450180,1752647485850,-1584.59,0.00022191,2]
[372450181,1752647485860,-460.0,0.00022191,2]
[372450182,1752647485870,-460.0,0.00022191,2]
[372450183,1752647485881,-460.0,0.00022191,2]
[372450184,1752647485892,-460.0,0.00022191,2]
[372450185,1752647485903,-460.0,0.00022191,2]
[372450186,1752647485913,-460.0,0.00022191,2]
[372450187,1752647485924,-517.2331191,0.00022191,2]
[372450188,1752647485934,-463.93698407,0.00022191,2]
[372450189,1752647485944,-460.0,0.00022191,2]
[372450190,1752647485954,-460.0,0.00022191,2]
[372450191,1752647485966,-821.08,0.00022191,2]
[372450192,1752647485975,-464.72435657,0.00022191,2]
[372450193,1752647485985,-460.0,0.00022191,2]
[372450194,1752647485995,-869.21,0.00022191,2]
[372450195,1752647486005,-152.839817,0.00022191,2]
[372450196,1752647486014,-922.81,0.00022191,2]
[372450197,1752647486024,-3230.590099,0.00022191,2]
[372450198,1752647486033,-460.0,0.00022191,2]
[372450199,1752647486043,-460.0,0.00022191,2]
[372450200,1752647486052,-460.0,0.00022191,2]
[372450201,1752647486062,-3740.90148,0.00022191,2]
[372450202,1752647486072,-460.0,0.00022191,2]
[372450203,1752647486082,-3676.397568,0.00022191,2]
[372450204,1752647486092,-525.50841903,0.00022191,2]
[372450205,1752647486102,-460.0,0.00022191,2]
[372450206,1752647486112,-460.0,0.00022191,2]
[372450207,1752647486122,-835.88,0.00022191,2]
[372450208,1752647486131,-1273.73,0.00022191,2]
[372450209,1752647486140,-1000.0,0.00022191,2]
[372450210,1752647486150,-460.0,0.00022191,2]
[372450211,1752647486160,-1000.0,0.00022191,2]
[372450212,1752647486170,-460.0,0.00022191,2]
[372450213,1752647486180,-460.0,0.00022191,2]
[372450214,1752647486189,-460.0,0.00022191,2]
[372450215,1752647486199,-557.56,0.00022191,2]
[372450216,1752647486208,-460.0,0.00022191,2]
[372450217,1752647486219,-475.52,0.00022191,2]
[372450218,1752647486229,-460.0,0.00022191,2]
[372450219,1752647486239,-460.0,0.00022191,2]
[372450220,1752647486248,-460.0,0.00022191,2]
[372450221,1752647486258,-1867.41,0.00022191,2]
[372450222,1752647486267,-1510.25,0.00022191,2]
[372450223,1752647486278,-460.0,0.00022191,2]
[372450224,1752647486287,-460.0,0.00022191,2]
[372450225,1752647486297,-621.52,0.00022191,2]
[372450226,1752647486307,-488.34,0.00022191,2]
[372450227,1752647486317,-623.95,0.00022191,2]
[372450228,1752647486336,-460.0,0.00022191,2]
[372450229,1752647486347,-460.0,0.00022191,2]
[372450230,1752647486356,-760.89,0.00022191,2]
[372450231,1752647486366,-490.0,0.00022191,2]
[372450232,1752647486376,-1528.2,0.00022191,2]
[372450233,1752647486387,-1433.87,0.00022191,2]
[372450234,1752647486397,-460.0,0.00022191,2]
[372450235,1752647486406,-460.0,0.00022191,2]
[372450236,1752647486416,-460.0,0.00022191,2]
[372450237,1752647486426,-460.0,0.00022191,2]
[372450238,1752647486435,-460.0,0.00022191,2]
[372450239,1752647486446,-756.66,0.00022191,2]
[372450240,1752647486455,-1349.37,0.00022191,2]
[372450241,1752647486466,-460.0,0.00022191,2]
[372450242,1752647486476,-460.0,0.00022191,2]
[372450243,1752647486485,-460.0,0.00022191,2]
[372450244,1752647486496,-1023.55,0.00022191,2]
[372450245,1752647486506,-460.0,0.00022191,2]
[372450246,1752647486516,-460.0,0.00022191,2]
[372450247,1752647486525,-460.0,0.00022191,2]
[372450248,1752647486535,-1134.86,0.00022191,2]
[372450249,1752647486545,-564.04,0.00022191,2]
[372450250,1752647486554,-460.0,0.00022191,2]
[372450251,1752647486564,-460.0,0.00022191,2]
[372450252,1752647486574,-282.56929233,0.00022191,2]
[372450253,1752647486994,-460.0,0.00022191,2]
[372450254,1752647487005,-460.0,0.00022191,2]
[372450255,1752647487014,-460.0,0.00022191,2]
[372450256,1752647487024,-631.23,0.00022191,2]
[372450257,1752647487034,-460.0,0.00022191,2]
[372450258,1752647487044,-460.0,0.00022191,2]
[372450259,1752647487054,-1043.08,0.00022191,2]
[372450260,1752647487064,-460.0,0.00022191,2]
[372450261,1752647487073,-460.0,0.00022191,2]
[372450262,1752647487083,-520.42,0.00022191,2]
[372450263,1752647487094,-478.77,0.00022191,2]
[372450264,1752647487104,-460.0,0.00022191,2]
[372450265,1752647487114,-460.0,0.00022191,2]
[372450266,1752647487124,-658.41,0.00022191,2]
[372450267,1752647487134,-460.0,0.00022191,2]
[372450268,1752647487144,-613.99,0.00022191,2]
[372450269,1752647487154,-460.0,0.00022191,2]
[372450270,1752647487164,-460.0,0.00022191,2]
[372450271,1752647487173,-193.87326752,0.00022191,2]
[372450272,1752647487183,-923.79,0.00022191,2]
[372450273,1752647487192,-643.27,0.00022191,2]
[372450274,1752647487202,-460.0,0.00022191,2]
[372450275,1752647487211,-460.0,0.00022191,2]
[372450276,1752647487223,-623.47,0.00022191,2]
[372450277,1752647487233,-1826.86,0.00022191,2]
[372450278,1752647487243,-672.64,0.00022191,2]
[372450279,1752647487254,-404.92516007,0.00022191,2]
[372450280,1752647487264,-460.0,0.00022191,2]
[372450281,1752647487274,-460.0,0.00022191,2]
[372450282,1752647487283,-1157.21,0.00022191,2]
[372450283,1752647487293,-597.74848408,0.00022191,2]
[372450284,1752647487303,-467.89,0.00022191,2]
[372450285,1752647487313,-848.66,0.00022191,2]
[372450286,1752647487322,-615.26,0.00022191,2]
[372450287,1752647487332,-460.0,0.00022191,2]
[372450288,1752647487342,-995.04,0.00022191,2]
[372450289,1752647487351,-634.28,0.00022191,2]
[372450290,1752647487361,-460.0,0.00022191,2]
[372450291,1752647487370,-460.0,0.00022191,2]
[372450292,1752647487380,-460.0,0.00022191,2]
[372450293,1752647487389,-462.66998264,0.00022191,2]
[372450294,1752647487399,-460.0,0.00022191,2]
[372450295,1752647487409,-460.0,0.00022191,2]
[372450296,1752647487418,-460.0,0.00022191,2]
[372450297,1752647487428,-520.95,0.00022191,2]
[372450298,1752647487438,-1247.11,0.00022191,2]
[372450299,1752647487448,-460.0,0.00022191,2]
[372450300,1752647487458,-460.0,0.00022191,2]
[372450301,1752647487470,-460.0,0.00022191,2]
[372450302,1752647487479,-462.57888364,0.00022191,2]
[372450303,1752647487489,-462.70941609,0.00022191,2]
[372450304,1752647487499,-710.72,0.00022191,2]
[372450305,1752647487509,-460.0,0.00022191,2]
[372450306,1752647487518,-629.23,0.00022191,2]
[372450307,1752647487528,-459.5833867,0.00022191,2]
[372450308,1752647487536,-460.0,0.00022191,2]
[372450309,1752647487546,-624.6,0.00022191,2]
[372450310,1752647487556,-1234.07,0.00022191,2]
[372450311,1752647487567,-656.27,0.00022191,2]
[372450312,1752647487577,-994.92,0.00022191,2]
[372450313,1752647487587,-888.19,0.00022191,2]
[372450314,1752647487597,-1181.03,0.00022191,2]
[372450315,1752647487608,-460.0,0.00022191,2]
[372450316,1752647487618,-851.69,0.00022191,2]
[372450317,1752647487627,-460.0,0.00022191,2]
[372450318,1752647487637,-462.9210491,0.00022191,2]
[372450319,1752647487647,-460.0,0.00022191,2]
[372450320,1752647487657,-518.40450555,0.00022191,2]
[372450321,1752647487667,-1701.69,0.00022191,2]
[372450322,1752647487676,-460.0,0.00022191,2]
[372450323,1752647487688,-922.11,0.00022191,2]
[372450324,1752647487698,-2389.56,0.00022191,2]
[372450325,1752647487707,-493.69,0.00022191,2]
[372450326,1752647487719,-275.99985865,0.00022191,2]
[372450327,1752647487728,-460.0,0.00022191,2]
[372450328,1752647487739,-460.0,0.00022191,2]
[372450329,1752647487749,-151.0,0.00022191,7]
[372450330,1752647487760,-151.0,0.00022191,7]
[372450331,1752647487771,-520.96,0.00022191,2]
[372450332,1752647487781,-460.0,0.00022191,2]
[372450333,1752647487791,-429.2881226,0.00022191,2]
[372450334,1752647487801,-1859.06,0.00022191,2]
[372450335,1752647487811,-1057.44,0.00022191,2]
[372450336,1752647487820,-795.18,0.00022191,2]
[372450337,1752647487830,-630.47,0.00022191,2]
[372450338,1752647487840,-555.62,0.00022191,2]
[372450339,1752647487849,-1325.58,0.00022191,2]
[372450340,1752647487859,-461.63219347,0.00022191,2]
[372450341,1752647487869,-460.0,0.00022191,2]
[372450342,1752647487879,-550.54,0.00022191,2]
[372450343,1752647487888,-460.0,0.00022191,2]
[372450344,1752647487898,-571.09960665,0.00022191,2]
[372450345,1752647487908,-460.0,0.00022191,2]
[372450346,1752647487918,-460.0,0.00022191,2]
[372450347,1752647487928,-1415.78,0.00022191,2]
[372450348,1752647487938,-1424.31,0.00022191,2]
[372450349,1752647487947,-460.0,0.00022191,2]
[372450350,1752647487957,-3035.24,0.00022191,2]
[372450351,1752647487970,-460.0,0.00022191,2]
[372450352,1752647487979,-427.85993304,0.00022191,2]
[372450353,1752647487989,-460.0,0.00022191,2]
[372450354,1752647487999,-460.0,0.00022191,2]
[372450355,1752647488009,-486.37,0.00022191,2]
[372450356,1752647488018,-460.0,0.00022191,2]
[372450357,1752647488028,-460.0,0.00022191,2]
[372450358,1752647488038,-460.0,0.00022191,2]
[372450359,1752647488048,-1718.98,0.00022191,2]
[372450360,1752647488058,-465.44040657,0.00022191,2]
[372450361,1752647488067,-462.33065369,0.00022191,2]
[372450362,1752647488077,-460.0,0.00022191,2]
[372450363,1752647488087,-460.0,0.00022191,2]
[372450364,1752647488097,-839.53,0.00022191,2]
[372450365,1752647488106,-460.0,0.00022191,2]
[372450366,1752647488116,-460.0,0.00022191,2]
[372450367,1752647488125,-460.0,0.00022191,2]
[372450368,1752647488135,-460.0,0.00022191,2]
[372450369,1752647488145,-462.25946475,0.00022191,2]
[372450370,1752647488154,-460.0,0.00022191,2]
[372450371,1752647488164,-2216.8,0.00022191,2]
[372450372,1752647488174,-199.13847524,0.00022191,2]
[372450373,1752647488184,-2760.22,0.00022191,2]
[372450374,1752647488194,-460.0,0.00022191,2]
[372450375,1752647488203,-460.0,0.00022191,2]
[372450376,1752647488213,-827.1,0.00022191,2]
[372450377,1752647488223,-614.03,0.00022191,2]
[372450378,1752647488233,-223.03,0.00022191,2]
[372450379,1752647488243,-460.0,0.00022191,2]
[372450380,1752647488253,-651.58,0.00022191,2]
[372450381,1752647488263,-460.0,0.00022191,2]
[372450382,1752647488273,-460.0,0.00022191,2]
[372450383,1752647488283,-460.0,0.00022191,2]
[372450384,1752647488293,-460.0,0.00022191,2]
[372450385,1752647488303,-460.0,0.00022191,2]
[372450386,1752647488313,-1741.2,0.00022191,2]
[372450387,1752647488323,-767.54,0.00022191,2]
[372450388,1752647488334,-460.0,0.00022191,2]
[372450389,1752647488344,-460.0,0.00022191,2]
[372450390,1752647488354,-1113.93,0.00022191,2]
[372450391,1752647488364,-460.0,0.00022191,2]
[372450392,1752647488375,-1076.05,0.00022191,2]
[372450393,1752647488386,-472.31,0.00022191,2]
[372450394,1752647488396,-464.73095533,0.00022191,2]
[372450395,1752647488406,-460.0,0.00022191,2]
[372450396,1752647488416,-460.0,0.00022191,2]
[372450397,1752647488426,-460.59,0.00022191,2]
[372450398,1752647488437,-460.0,0.00022191,2]
[372450399,1752647488447,-633.47,0.00022191,2]
[372450400,1752647488457,-583.71,0.00022191,2]
[372450401,1752647488467,-460.0,0.00022191,2]
[372450402,1752647488477,-460.0,0.00022191,2]
[372450403,1752647488486,-610.13,0.00022191,2]
[372450404,1752647488496,-2799.15,0.00022191,2]
[372450405,1752647488505,-1384.67,0.00022191,2]
[372450406,1752647488515,-1453.97,0.00022191,2]
[372450407,1752647488524,-560.88,0.00022191,2]
[372450408,1752647488534,-1014.75,0.00022191,2]
[372450409,1752647488544,-267.73806286,0.00022191,2]
[372450410,1752647488554,-945.93,0.00022191,2]
[372450411,1752647488563,-3502.81,0.00022191,2]
[372450412,1752647488573,-2382.84,0.00022191,2]
[372450413,1752647488584,-479.56,0.00022191,2]
[372450414,1752647488593,-460.0,0.00022191,2]
[372450415,1752647488603,-955.97,0.00022191,2]
[372450416,1752647488613,-460.0,0.00022191,2]
[372450417,1752647488623,-654.5,0.00022191,2]
[372450418,1752647488632,-540.73,0.00022191,2]
[372450419,1752647488642,-476.26,0.00022191,2]
[372450420,1752647488651,-2014.48,0.00022191,2]
[372450421,1752647488664,-460.0,0.00022191,2]
[372450422,1752647488676,-460.0,0.00022191,2]
[372450423,1752647488689,-707.35,0.00022191,2]
[372450424,1752647488699,-460.0,0.00022191,2]
[372450425,1752647488709,-811.41,0.00022191,2]
[372450426,1752647488720,-460.0,0.00022191,2]
[372450427,1752647488731,-460.0,0.00022191,2]
[372450428,1752647488740,-669.66,0.00022191,2]
[372450429,1752647488750,-460.0,0.00022191,2]
[372450430,1752647488759,-3837.43,0.00022191,2]
[372450431,1752647488769,-462.80200449,0.00022191,2]
[372450432,1752647488778,-1794.55,0.00022191,2]
[372450433,1752647488787,-460.0,0.00022191,2]
[372450434,1752647488796,-468.78419582,0.00022191,2]
[372450435,1752647488806,-460.0,0.00022191,2]
[372450436,1752647488815,-460.0,0.00022191,2]
[372450437,1752647488825,-460.0,0.00022191,2]
[372450438,1752647488835,-2662.58,0.00022191,2]
[372450439,1752647488844,-2813.36,0.00022191,2]
[372450440,1752647488854,-460.0,0.00022191,2]
[372450441,1752647488863,-460.0,0.00022191,2]
[372450442,1752647488874,-460.0,0.00022191,2]
[372450443,1752647488883,-460.0,0.00022191,2]
[372450444,1752647488893,-301.58605853,0.00022191,2]
[372450445,1752647488903,-1149.99,0.00022191,2]
[372450446,1752647488912,-998.04,0.00022191,2]
[372450447,1752647488922,-460.0,0.00022191,2]
[372450448,1752647488932,-460.0,0.00022191,2]
[372450449,1752647488942,-460.0,0.00022191,2]
[372450450,1752647488952,-460.0,0.00022191,2]
[372450451,1752647488962,-460.0,0.00022191,2]
[372450452,1752647488973,-433.92969841,0.00022191,2]
[372450453,1752647488983,-460.0,0.00022191,2]
[372450454,1752647488993,-3954.32,0.00022191,2]
[372450455,1752647489004,-460.0,0.00022191,2]
[372450456,1752647489015,-460.0,0.00022191,2]
[372450457,1752647489024,-460.0,0.00022191,2]
[372450458,1752647489034,-778.91,0.00022191,2]
[372450459,1752647489044,-460.0,0.00022191,2]
[372450460,1752647489054,-460.0,0.00022191,2]
[372450461,1752647489063,-460.0,0.00022191,2]
[372450462,1752647489073,-597.72,0.00022191,2]
[372450463,1752647489083,-460.0,0.00022191,2]
[372450464,1752647489092,-820.34,0.00022191,2]
[372450465,1752647489102,-460.0,0.00022191,2]
[372450466,1752647489112,-1320.35,0.00022191,2]
[372450467,1752647489122,-1009.96,0.00022191,2]
[372450468,1752647489132,-460.0,0.00022191,2]
[372450469,1752647489141,-793.31,0.00022191,2]
[372450470,1752647489152,-1675.72,0.00022191,2]
[372450471,1752647489162,-460.0,0.00022191,2]
[372450472,1752647489173,-480.67,0.00022191,2]
[372450473,1752647489184,-465.08,0.00022191,2]
[372450474,1752647489194,-462.76437137,0.00022191,2]
[372450475,1752647489205,-1666.14,0.00022191,2]
[372450476,1752647489215,-460.0,0.00022191,2]
[372450477,1752647489225,-686.66,0.00022191,2]
[372450478,1752647489235,-1288.04,0.00022191,2]
[372450479,1752647489245,-2602.16,0.00022191,2]
[372450480,1752647489255,-460.0,0.00022191,2]
[372450481,1752647489266,-1567.95,0.00022191,2]
[372450482,1752647489278,-1433.66,0.00022191,2]
[372450483,1752647489289,-566.89,0.00022191,2]
[372450484,1752647489300,-460.0,0.00022191,2]
[372450485,1752647489310,-800.66,0.00022191,2]
[372450486,1752647489319,-276.96989147,0.00022191,2]
[372450487,1752647489330,-462.30433512,0.00022191,2]
[372450488,1752647489340,-515.14,0.00022191,2]
[372450489,1752647489350,-288.51981875,0.00022191,2]
[372450490,1752647489360,-460.0,0.00022191,2]
[372450491,1752647489370,-2970.78,0.00022191,2]
[372450492,1752647489379,-460.0,0.00022191,2]
[372450493,1752647489389,-1080.05,0.00022191,2]
[372450494,1752647489400,-539.91,0.00022191,5]
[372450495,1752647489410,-2084.6,0.00022191,2]
[372450496,1752647489420,-460.0,0.00022191,2]
[372450497,1752647489531,-2737.74,0.00022191,2]
[372450498,1752647489541,-735.9,0.00022191,2]
[372450499,1752647489550,-799.97,0.00022191,2]
[372450500,1752647489560,-460.0,0.00022191,2]
[372450501,1752647489570,-460.0,0.00022191,2]
[372450502,1752647489580,-490.37,0.00022191,2]
[372450503,1752647489590,-1553.97,0.00022191,2]
[372450504,1752647489600,-483.11,0.00022191,2]
[372450505,1752647489611,-460.0,0.00022191,2]
[372450506,1752647489620,-978.38,0.00022191,2]
[372450507,1752647489630,-1216.94,0.00022191,2]
[372450508,1752647489640,-1350.44,0.00022191,2]
[372450509,1752647489650,-460.0,0.00022191,2]
[372450510,1752647489659,-460.0,0.00022191,2]
[372450511,1752647489669,-460.0,0.00022191,2]
[372450512,1752647489678,-460.0,0.00022191,2]
[372450513,1752647489693,-460.0,0.00022191,2]
[372450514,1752647489703,-460.0,0.00022191,2]
[372450515,1752647489712,-460.0,0.00022191,2]
[372450516,1752647489723,-1532.57,0.00022191,2]
[372450517,1752647489733,-800.41,0.00022191,2]
[372450518,1752647489742,-460.0,0.00022191,2]
[372450519,1752647489752,-765.9,0.00022191,2]
[372450520,1752647489763,-460.0,0.00022191,2]
[372450521,1752647489772,-1685.99,0.00022191,2]
[372450522,1752647489782,-1007.2,0.00022191,2]
[372450523,1752647489792,-1285.77,0.00022191,2]
[372450524,1752647489802,-2428.45,0.00022191,2]
[372450525,1752647489813,-460.0,0.00022191,2]
[372450526,1752647489823,-462.56377332,0.00022191,2]
[372450527,1752647489834,-1921.96,0.00022191,2]
[372450528,1752647489844,-535.79,0.00022191,2]
[372450529,1752647489853,-460.0,0.00022191,2]
[372450530,1752647489864,-460.0,0.00022191,2]
[372450531,1752647489875,-359.47,0.00022191,2]
[372450532,1752647489886,-460.0,0.00022191,2]
[372450533,1752647489896,-460.0,0.00022191,2]
[372450534,1752647489906,-1048.82,0.00022191,2]
[372450535,1752647489915,-3461.78,0.00022191,2]
[372450536,1752647489925,-460.0,0.00022191,2]
[372450537,1752647489935,-460.0,0.00022191,2]
[372450538,1752647489944,-530.0,0.00022191,2]
[372450539,1752647489955,-460.0,0.00022191,2]
[372450540,1752647489965,-634.34,0.00022191,2]
[372450541,1752647489974,-460.0,0.00022191,2]
[372450542,1752647489984,-2786.37,0.00022191,2]
[372450543,1752647489994,-556.91,0.00022191,2]
[372450544,1752647490004,-3241.98,0.00022191,2]
[372450545,1752647490013,-460.0,0.00022191,2]
[372450546,1752647490023,-1782.29,0.00022191,2]
[372450547,1752647490033,-460.0,0.00022191,2]
[372450548,1752647490042,-486.32,0.00022191,2]
[372450549,1752647490051,-460.0,0.00022191,2]
[372450550,1752647490061,-496.66,0.00022191,2]
[372450551,1752647490070,-1427.07,0.00022191,2]
[372450552,1752647490080,-940.68,0.00022191,2]
[372450553,1752647490090,-460.0,0.00022191,2]
[372450554,1752647490099,-698.08,0.00022191,2]
[372450555,1752647490109,-460.0,0.00022191,2]
[372450556,1752647490118,-3533.09,0.00022191,2]
[372450557,1752647490127,-1620.17,0.00022191,2]
[372450558,1752647490137,-3370.33,0.00022191,2]
[372450559,1752647490146,-521.9,0.00022191,2]
[372450560,1752647490156,-2608.6,0.00022191,2]
[372450561,1752647490166,-189.88008324,0.00022191,2]
[372450562,1752647490175,-465.74855671,0.00022191,2]
[372450563,1752647490185,-571.97,0.00022191,2]
[372450564,1752647490194,-3109.2,0.00022191,2]
[372450565,1752647490203,-724.54,0.00022191,2]
[372450566,1752647490213,-534.27,0.00022191,2]
[372450567,1752647490223,-460.0,0.00022191,2]
[372450568,1752647490232,-460.0,0.00022191,2]
[372450569,1752647490242,-664.63,0.00022191,2]
[372450570,1752647490251,-460.0,0.00022191,2]
[372450571,1752647490261,-460.0,0.00022191,2]
[372450572,1752647490270,-507.77,0.00022191,2]
[372450573,1752647490280,-2384.65,0.00022191,2]
[372450574,1752647490289,-1749.0,0.00022191,2]
[372450575,1752647490299,-460.0,0.00022191,2]
[372450576,1752647490309,-460.0,0.00022191,2]
[372450577,1752647490319,-460.0,0.00022191,2]
[372450578,1752647490328,-162.85646556,0.00022191,2]
[372450579,1752647490338,-2777.23,0.00022191,2]
[372450580,1752647490348,-726.13,0.00022191,2]
[372450581,1752647490357,-817.18,0.00022191,2]
[372450582,1752647490367,-460.0,0.00022191,2]
[372450583,1752647490376,-522.62,0.00022191,2]
[372450584,1752647490386,-460.0,0.00022191,2]
[372450585,1752647490395,-1268.93,0.00022191,2]
[372450586,1752647490405,-1995.38,0.00022191,2]
[372450587,1752647490415,-960.84,0.00022191,2]
[372450588,1752647490424,-460.0,0.00022191,2]
[372450589,1752647490434,-877.13,0.00022191,2]
[372450590,1752647490443,-460.0,0.00022191,2]
[372450591,1752647490453,-155.316,0.00022191,7]
[372450592,1752647490462,-1050.12,0.00022191,2]
[372450593,1752647490473,-460.0,0.00022191,2]
[372450594,1752647490483,-799.76,0.00022191,2]
[372450595,1752647490493,-894.43,0.00022191,2]
[372450596,1752647490504,-3637.64,0.00022191,2]
[372450597,1752647490514,-460.0,0.00022191,2]
[372450598,1752647490523,-621.26,0.00022191,2]
[372450599,1752647490532,-2758.68,0.00022191,2]
[372450600,1752647490542,-658.88,0.00022191,2]
[372450601,1752647490552,-460.0,0.00022191,2]
[372450602,1752647490561,-1480.43,0.00022191,2]
[372450603,1752647490570,-870.67,0.00022191,2]
[372450604,1752647490580,-460.0,0.00022191,2]
[372450605,1752647490589,-151.0,0.00022191,7]
[372450606,1752647490599,-519.68,0.00022191,2]
[372450607,1752647490608,-524.73,0.00022191,2]
[372450608,1752647490618,-2726.06,0.00022191,2]
[372450609,1752647490627,-1173.93,0.00022191,2]
[372450610,1752647490637,-159.25872685,0.00022191,2]
[372450611,1752647490646,-2816.73,0.00022191,2]
[372450612,1752647490656,-460.0,0.00022191,2]
[372450613,1752647490666,-875.13,0.00022191,2]
[372450614,1752647490676,-550.41,0.00022191,2]
[372450615,1752647490686,-460.0,0.00022191,2]
[372450616,1752647490697,-460.0,0.00022191,2]
[372450617,1752647490706,-1275.35,0.00022191,2]
[372450618,1752647490715,-585.99,0.00022191,2]
[372450619,1752647490724,-460.0,0.00022191,2]
[372450620,1752647490734,-1807.59,0.00022191,2]
[372450621,1752647490743,-279.11895192,0.00022191,2]
[372450622,1752647490754,-460.0,0.00022191,2]
[372450623,1752647490768,-576.12,0.00022191,2]
[372450624,1752647490778,-460.0,0.00022191,2]
[372450625,1752647490788,-460.0,0.00022191,2]
[372450626,1752647490798,-816.39,0.00022191,2]
[372450627,1752647490807,-460.0,0.00022191,2]
[372450628,1752647490817,-1159.58,0.00022191,2]
[372450629,1752647490827,-1191.39,0.00022191,2]
[372450630,1752647490837,-2351.57,0.00022191,2]
[372450631,1752647490846,-1490.82,0.00022191,2]
[372450632,1752647490856,-460.0,0.00022191,2]
[372450633,1752647490866,-465.52313508,0.00022191,2]
[372450634,1752647490876,-460.0,0.00022191,2]
[372450635,1752647490886,-460.0,0.00022191,2]
[372450636,1752647490896,-3186.39,0.00022191,2]
[372450637,1752647490906,-460.0,0.00022191,2]
[372450638,1752647490916,-952.51,0.00022191,2]
[372450639,1752647490926,-2723.46,0.00022191,2]
[372450640,1752647490936,-1591.14,0.00022191,2]
[372450641,1752647490945,-1176.71,0.00022191,2]
[372450642,1752647490955,-460.0,0.00022191,2]
[372450643,1752647490965,-2390.77,0.00022191,2]
[372450644,1752647490975,-2232.65,0.00022191,2]
[372450645,1752647490984,-460.0,0.00022191,2]
[372450646,1752647490995,-1102.23,0.00022191,2]
[372450647,1752647491006,-464.79993372,0.00022191,2]
[372450648,1752647491016,-460.0,0.00022191,2]
[372450649,1752647491026,-573.01,0.00022191,2]
[372450650,1752647491036,-1696.66,0.00022191,2]
[372450651,1752647491048,-460.0,0.00022191,2]
[372450652,1752647491058,-1126.39,0.00022191,2]
[372450653,1752647491067,-460.0,0.00022191,2]
[372450654,1752647491078,-460.0,0.00022191,2]
[372450655,1752647491088,-460.0,0.00022191,2]
[372450656,1752647491097,-460.0,0.00022191,2]
[372450657,1752647491107,-1065.46,0.00022191,2]
[372450658,1752647491117,-1967.49,0.00022191,2]
[372450659,1752647491126,-2802.34,0.00022191,2]
[372450660,1752647491136,-460.0,0.00022191,2]
[372450661,1752647491145,-725.07,0.00022191,2]
[372450662,1752647491156,-460.0,0.00022191,2]